{"text_format":"1","workbook":"xlsx","n_sheets":4,"sheets":["База для АВТО","Легковые АВТО","БД Авто_Л","Общие базы"],"not_rendered":{"charts":0,"images":1,"macros":1,"external_links":1,"defined_names":12,"comments":1,"pivot_tables":0},"unopened":[],"bounds":{"document_bytes":16777216,"sheet_cells":100000,"rows_first":2000,"rows_last":500,"rows_between":2000,"halvings":0,"cell_chars":16384,"cell_head_chars":4096},"cells_cut":0,"cells_raw":0,"read":"whole","date_system":"1900"}

{"sheet":"База для АВТО","index":0,"n_rows":9,"n_cols":15,"rows_kept":9,"cut":false,"hidden":false,"merged":[]}
["Ст1","№ п/п","С","По","Марка","Номер","Водитель","Таб. номер","Удост-е","Бензин (марка)","Время выезда","Время въезда","Механик","Диспетчер","Направление (2-й лист)"]
[null,1,"2011-09-02","2011-09-03","Форд",{"$f":"IFERROR(VLOOKUP(E2,Марка_авто_Л,2,0),\"\")","v":"Т543ВВ"},"Демидов Ф.К.",{"$f":"IFERROR(VLOOKUP(G2,Водители_Л,2,0),\"\")","v":2167},{"$f":"IFERROR(VLOOKUP(G2,Водители_Л,3,0),\"\")","v":"4 СКУ 6544"},{"$f":"IFERROR(VLOOKUP(E2,'БД Авто_Л'!$A$4:$C$15,3,0),\"\")","v":"Аи-92"},"08:00:00","17:00:00","Иванов И.И.","Сидоров В.К.","г.Москва по городу (служебный)"]
["x",2,"2011-09-12","2011-09-13","ГАЗ","У876ДК","Петровский Д.К.",2122,"3 СКУ 6544",{"$f":"IFERROR(VLOOKUP(E3,'БД Авто_Л'!$A$4:$C$15,3,0),\"\")","v":"Аи-80"},"05:00:00","07:00:00","Иванов И.И.","Сидоров В.К.","г.Москва по городу (служебный)"]
[null,3,"2011-09-20","2011-09-21","Иж","М567УВ","Макарский И.У.",120,"02 СКУ 6544",{"$f":"IFERROR(VLOOKUP(E4,'БД Авто_Л'!$A$4:$C$15,3,0),\"\")","v":"Аи-92"},"06:00:00","13:00:00","Иванов И.И.","Сидоров В.К.","г. Москва, Санкт-Петербург (служебный)"]
[null,4,null,null,null,"",null,"","",{"$f":"IFERROR(VLOOKUP(E5,'БД Авто_Л'!$A$4:$C$15,3,0),\"\")","v":""}]
[null,5,null,null,null,"",null,"","",{"$f":"IFERROR(VLOOKUP(E6,'БД Авто_Л'!$A$4:$C$15,3,0),\"\")","v":""}]
[null,6,null,null,null,"",null,"","",{"$f":"IFERROR(VLOOKUP(E7,'БД Авто_Л'!$A$4:$C$15,3,0),\"\")","v":""}]
[null,7,null,null,null,"",null,"","",{"$f":"IFERROR(VLOOKUP(E8,'БД Авто_Л'!$A$4:$C$15,3,0),\"\")","v":""}]
[null,8,null,null,null,"",null,"","",{"$f":"IFERROR(VLOOKUP(E9,'БД Авто_Л'!$A$4:$C$15,3,0),\"\")","v":""}]

{"sheet":"Легковые АВТО","index":1,"n_rows":47,"n_cols":108,"rows_kept":47,"cut":false,"hidden":false,"merged":[[27,107,28,107],[3,92,5,92],[3,94,5,94],[4,95,5,95],[4,98,5,98],[4,99,4,101],[4,102,4,103],[6,94,6,105],[3,99,3,103],[3,95,3,98],[3,107,5,107],[27,92,28,92],[27,94,28,94],[27,95,28,95],[27,98,28,98],[27,99,28,99],[27,101,28,101],[27,102,28,102],[27,103,28,103],[27,105,28,105],[3,105,5,105],[16,60,16,79],[39,71,39,84],[38,71,38,84],[26,67,26,84],[31,29,31,43],[35,29,35,43],[33,71,35,84],[29,30,29,43],[37,71,37,84],[36,28,36,44],[35,54,35,70],[26,57,26,65],[37,0,37,43],[39,9,39,43],[27,57,27,70],[36,20,36,26],[36,71,36,84],[35,20,35,26],[18,72,18,84],[19,16,19,43],[20,16,20,43],[32,20,32,26],[32,28,32,44],[28,57,29,70],[28,71,29,84],[26,0,26,43],[27,0,27,43],[27,44,27,56],[22,55,22,63],[22,65,22,84],[27,71,27,84],[22,0,22,28],[21,29,21,43],[21,0,21,28],[21,56,21,63],[21,65,21,84],[25,57,25,65],[25,67,25,84],[32,71,32,84],[45,20,45,26],[44,30,44,43],[41,0,41,43],[43,20,43,27],[45,29,45,45],[40,0,40,43],[46,55,46,63],[46,65,46,84],[40,71,40,84],[41,71,41,84],[44,71,44,84],[45,65,45,84],[45,55,45,63],[4,6,4,8],[4,11,4,21],[4,41,4,51],[4,23,4,25],[4,26,4,28],[34,32,34,43],[31,20,31,26],[3,70,3,74],[5,67,5,84],[6,67,6,84],[3,75,3,84],[3,61,3,69],[4,61,4,69],[4,55,4,57],[7,67,7,84],[13,66,13,81],[13,17,13,54],[16,32,16,42],[10,34,10,48],[9,21,9,62],[10,67,10,84],[11,67,11,84],[11,12,11,48],[9,67,9,84],[8,17,8,53],[16,21,16,31],[14,24,14,59],[15,24,15,59],[16,43,16,51],[12,12,12,48],[16,52,16,59],[7,17,7,53],[4,52,4,54],[4,36,4,38]]}
[null,"Место для штампа ",null,null,null,null,null,null,null,null,null,null,null,null,null,null,null,null,null,null,null,null,null,null,null,null,null,null,null,null,null,null,null,null,null,null,null,null,null,null,null,null,null,null,null,"Типовая  межотраслевая форма №  3",null,null,null,null,null,null,null,null,null,null,null,null,null,null,null,null,null,null,null,null,null,null,null,null,null,null,null,null,null,null,null,null,null,null,null,null,null,null,null,null,null,null,null,null,null,null,null,null,null,null,null,null,null,null,null,null,null,"Оборотная сторона формы № 3"]
[null,null,null,"организации",null,null,null,null,null,null,null,null,null,null,null,null,null,null,null,null,null,null,null,null,null,null,null,null,null,null,null,null,null,null,null,null,null,null,null,null,null,null,null,null,null,"Утверждена постановлением Госкомстата России"]
[null,null,null,null,null,null,null,null,null,null,null,null,null,null,null,null,null,null,null,null,null,null,null,null,null,null,null,null,null,null,null,null,null,null,null,null,null,null,null,null,null,null,null,null,null,"от  28.11.97  №  78"]
[null,null,"ПУТЕВОЙ ЛИСТ ЛЕГКОВОГО АВТОМОБИЛЯ",null,null,null,null,null,null,null,null,null,null,null,null,null,null,null,null,null,null,null,null,null,null,null,null,null,null,null,null,null,null,null,null,null,null,null,null,null,null,null,null,null,null,null,null,null,null,null,null,null,null,null,null,null,null,null,null,null,null,null,null,null,null,null,null,null,null,null,"№",null,null,null,null,{"$f":"VLOOKUP(\"x\",tabl1[[Ст1]:[№ п/п]],2,0)","v":2},null,null,null,null,null,null,null,null,null,null,null,null,null,null,null,null,"Номер по по- рядку","Код заказчика","Код заказчика","Место",null,null,null,"Время",null,null,null,null,"Пройдено,    км","Пройдено,    км","Подпись лица, пользо- вавшегося авто- мобилем","Подпись лица, пользо- вавшего- ся авто- мобилем"]
[null,null,"c",null,null,"«",{"$f":"VLOOKUP(\"x\",tabl1[[Ст1]:[С]],3,0)","v":"2011-09-12"},null,null,"»",null,{"$f":"G5","v":"2011-09-12"},null,null,null,null,null,null,null,null,null,null,null,20,null,null,"11",null,null," г.",null,"по",null,null,null,"«",{"$f":"VLOOKUP(\"x\",tabl1[[Ст1]:[По]],4,0)","v":"2011-09-13"},null,null,"»",null,{"$f":"AK5","v":"2011-09-13"},null,null,null,null,null,null,null,null,null,null,20,null,null,"11",null,null," г.",null,null,"(серия)",null,null,null,null,null,null,null,null,null,null,null,null,null,null,null,null,null,null,null,null,null,null,null,null,null,null,null,null,null,null,null,null,null,"отправления",null,null,"назначения","выезда",null,null,"возвращения"]
[null,null,null,null,null,null,null,null,null,null,null,null,null,null,null,null,null,null,null,null,null,null,null,null,null,null,null,null,null,null,null,null,null,null,null,null,null,null,null,null,null,null,null,null,null,null,null,null,null,null,null,null,null,null,null,null,null,null,null,null,null,null,null,null,null,null,null,"Код",null,null,null,null,null,null,null,null,null,null,null,null,null,null,null,null,null,null,null,null,null,null,null,null,null,null,null,null,null,null,null,"ч.",null,"мин.","ч.","мин."]
[null,null,null,null,null,null,null,null,null,null,null,null,null,null,null,null,null,null,null,null,null,null,null,null,null,null,null,null,null,null,null,null,null,null,null,null,null,null,null,null,null,null,null,null,null,null,null,null,null,null,null,null,null,null,null,null,null,null,null,null,null,null,null,null,null,"Форма по ОКУД",null,"0345001",null,null,null,null,null,null,null,null,null,null,null,null,null,null,null,null,null,null,null,null,null,null,null,null,null,{"$f":"VLOOKUP(\"x\",'База для АВТО'!$A$2:$O$9,15,FALSE)","v":"г.Москва по городу (служебный)"},{"$f":"VLOOKUP(\"x\",'База для АВТО'!$A$2:$O$9,15,FALSE)","v":"г.Москва по городу (служебный)"}]
[null,"Организация",null,null,null,null,null,null,null,null,null,null,null,null,null,null,null,"ООО \"БАРС\"",null,null,null,null,null,null,null,null,null,null,null,null,null,null,null,null,null,null,null,null,null,null,null,null,null,null,null,null,null,null,null,null,null,null,null,null,null,null,null,null,null,null,null,null,null,null,null,"по ОКПО"]
[null,null,null,null,null,null,null,null,null,null,null,null,null,null,null,null,null,"(наименование, адрес, номер телефона)"]
[null,"Марка автомобиля",null,null,null,null,null,null,null,null,null,null,null,null,null,null,null,null,null,null,null,{"$f":"VLOOKUP(\"x\",'База для АВТО'!$A$2:$O$9,5,FALSE)","v":"ГАЗ"}]
[null,"Государственный номерной знак",null,null,null,null,null,null,null,null,null,null,null,null,null,null,null,null,null,null,null,null,null,null,null,null,null,null,null,null,null,null,null,null,{"$f":"VLOOKUP(\"x\",'База для АВТО'!$A$2:$O$9,6,FALSE)","v":"У876ДК"},null,null,null,null,null,null,null,null,null,null,null,null,null,null,null,null,null,null,null,null,null,null,null,null,null,null,null,null,null,null,"Гаражный номер"]
[null,"Водитель",null,null,null,null,null,null,null,null,null,null,{"$f":"VLOOKUP(\"x\",'База для АВТО'!$A$2:$O$9,7,FALSE)","v":"Петровский Д.К."},null,null,null,null,null,null,null,null,null,null,null,null,null,null,null,null,null,null,null,null,null,null,null,null,null,null,null,null,null,null,null,null,null,null,null,null,null,null,null,null,null,null,null,null,null,null,null,null,null,null,null,null,"Табельный номер",null,{"$f":"VLOOKUP(\"x\",'База для АВТО'!$A$2:$O$9,8,FALSE)","v":2122}]
[null,null,null,null,null,null,null,null,null,null,null,null,"(фамилия, имя, отчество)"]
["Удостоверение №",null,null,null,null,null,null,null,null,null,null,null,null,null,null,null,null,{"$f":"VLOOKUP(\"x\",'База для АВТО'!$A$2:$O$9,9,FALSE)","v":"3 СКУ 6544"},null,null,null,null,null,null,null,null,null,null,null,null,null,null,null,null,null,null,null,null,null,null,null,null,null,null,null,null,null,null,null,null,null,null,null,null,null,null,null,null,null,null,"Класс",null,null,null,null,null,"1"]
[null,"Лицензионная карточка",null,null,null,null,null,null,null,null,null,null,null,null,null,null,null,null,null,null,null,null,null,null,"стандартная, ограниченная"]
[null,null,null,null,null,null,null,null,null,null,null,null,null,null,null,null,null,null,null,null,null,null,null,null,"(ненужное зачеркнуть)"]
[null,"Регистрационный №",null,null,null,null,null,null,null,null,null,null,null,null,null,null,null,null,null,null,null,"0",null,null,null,null,null,null,null,null,null,null,"Серия",null,null,null,null,null,null,null,null,null,null,null,null,null,null,null,null,null,null,null,"№",null,null,null,null,null,null,null,"0"]
[null,null,null,null,null,null,null,null,null,null,"Задание водителю",null,null,null,null,null,null,null,null,null,null,null,null,null,null,null,null,null,null,null,null,null,null,null,null,null,null,null,null,null,null,null,null,null,null,"Автомобиль технически исправен"]
[null,null,null,null,null,null,null,null,null,null,null,null,null,null,null,null,null,null,null,null,null,null,null,null,null,null,null,null,null,null,null,null,null,null,null,null,null,null,null,null,null,null,null,null,null,null,"Показания спидометра,  км"]
[null,"В распоряжение",null,null,null,null,null,null,null,null,null,null,null,null,null,null,{"$f":"R8","v":"ООО \"БАРС\""}]
[null,null,null,null,null,null,null,null,null,null,null,null,null,null,null,null,"(наименование)",null,null,null,null,null,null,null,null,null,null,null,null,null,null,null,null,null,null,null,null,null,null,null,null,null,null,null,null,null,"Выезд разрешен"]
[null,null,null,null,null,null,null,null,null,null,null,null,null,null,null,null,null,null,null,null,null,null,null,null,null,null,null,null,null,null,null,null,null,null,null,null,null,null,null,null,null,null,null,null,null,null,"Механик",null,null,null,null,null,null,null,null,null,null,null,null,null,null,null,null,null,null,{"$f":"VLOOKUP(\"x\",'База для АВТО'!$A$2:$O$9,13,FALSE)","v":"Иванов И.И."}]
["(организация)",null,null,null,null,null,null,null,null,null,null,null,null,null,null,null,null,null,null,null,null,null,null,null,null,null,null,null,null,null,null,null,null,null,null,null,null,null,null,null,null,null,null,null,null,null,null,null,null,null,null,null,null,null,null,"(подпись)",null,null,null,null,null,null,null,null,null,"(расшифровка подписи)"]
[null,null,null,null,null,null,null,null,null,null,null,null,null,null,null,null,null,null,null,null,null,null,null,null,null,null,null,null,null,null,null,null,null,null,null,null,null,null,null,null,null,null,null,null,null,null,null,null,null,null,null,"Автомобиль в технически"]
[null,null,null,null,null,null,null,null,null,null,null,null,null,null,null,null,null,null,null,null,null,null,null,null,null,null,null,null,null,null,null,null,null,null,null,null,null,null,null,null,null,null,null,null,null,null,null,null,null,null,"исправном состоянии принял"]
["Адрес подачи",null,null,null,null,null,null,null,null,null,null,null,null,null,{"$f":"R8","v":"ООО \"БАРС\""},null,null,null,null,null,null,null,null,null,null,null,null,null,null,null,null,null,null,null,null,null,null,null,null,null,null,null,null,null,null,null,"Водитель",null,null,null,null,null,null,null,null,null,null,null,null,null,null,null,null,null,null,null,null,{"$f":"M12","v":"Петровский Д.К."}]
[null,null,null,null,null,null,null,null,null,null,null,null,null,null,null,null,null,null,null,null,null,null,null,null,null,null,null,null,null,null,null,null,null,null,null,null,null,null,null,null,null,null,null,null,null,null,null,null,null,null,null,null,null,null,null,null,null,"(подпись)",null,null,null,null,null,null,null,null,null,"(расшифровка подписи)"]
[null,null,null,null,null,null,null,null,null,null,null,null,null,null,null,null,null,null,null,null,null,null,null,null,null,null,null,null,null,null,null,null,null,null,null,null,null,null,null,null,null,null,null,null,"Горючее",null,null,null,null,null,null,null,null,null,null,null,null,"марка",null,null,null,null,null,null,null,null,null,null,null,null,null,"код"]
[null,null,null,null,null,null,null,null,null,null,null,null,null,null,null,null,null,null,null,null,null,null,null,null,null,null,null,null,null,null,null,null,null,null,null,null,null,null,null,null,null,null,null,null,null,null,null,null,null,null,null,null,null,null,null,null,null,{"$f":"VLOOKUP(\"x\",'База для АВТО'!$A$2:$O$9,10,FALSE)","v":"Аи-80"}]
["Время выезда из гаража, ч. мин.",null,null,null,null,null,null,null,null,null,null,null,null,null,null,null,null,null,null,null,null,null,null,null,null,null,null,null,null,null,{"$f":"VLOOKUP(\"x\",'База для АВТО'!$A$2:$O$9,11,FALSE)","v":"05:00:00"}]
[null,null,null,null,null,null,null,null,null,null,null,null,null,null,null,null,null,null,null,null,null,null,null,null,null,null,null,null,null,null,null,null,null,null,null,null,null,null,null,null,null,null,null,null,null,null,null,null,null,null,null,null,"Движение горючего"]
[null,"Диспетчер-нарядчик",null,null,null,null,null,null,null,null,null,null,null,null,null,null,null,null,null,null,null,null,null,null,null,null,null,null,null,{"$f":"VLOOKUP(\"x\",'База для АВТО'!$A$2:$O$9,14,FALSE)","v":"Сидоров В.К."}]
[null,null,null,null,null,null,null,null,null,null,null,null,null,null,null,null,null,null,null,null,"(подпись)",null,null,null,null,null,null,null,"(расшифровка подписи)",null,null,null,null,null,null,null,null,null,null,null,null,null,null,null,null,null,null,null,null,null,null,null,null,null,null,null,null,null,null,null,null,null,null,null,null,null,null,null,null,null,null,"количество,\nл"]
[null,null,null,null,null,null,null,null,null,null,null,null,null,null,null,null,null,null,null,null,null,null,null,null,null,null,null,null,null,null,null,null,null,null,null,null,null,null,null,null,null,null,null,null,null,null,null,null,null,"Выдано:"]
[null,"Время возвращения в гараж, ч. мин.",null,null,null,null,null,null,null,null,null,null,null,null,null,null,null,null,null,null,null,null,null,null,null,null,null,null,null,null,null,null,{"$f":"VLOOKUP(\"x\",'База для АВТО'!$A$2:$O$9,12,FALSE)","v":"07:00:00"},null,null,null,null,null,null,null,null,null,null,null,null,"по заправочному"]
[null,"Диспетчер-нарядчик",null,null,null,null,null,null,null,null,null,null,null,null,null,null,null,null,null,null,null,null,null,null,null,null,null,null,null,{"$f":"VLOOKUP(\"x\",'База для АВТО'!$A$2:$O$9,14,FALSE)","v":"Сидоров В.К."},null,null,null,null,null,null,null,null,null,null,null,null,null,null,null,"листу №"]
[null,null,null,null,null,null,null,null,null,null,null,null,null,null,null,null,null,null,null,null,"(подпись)",null,null,null,null,null,null,null,"(расшифровка подписи)",null,null,null,null,null,null,null,null,null,null,null,null,null,null,null,null,"Остаток: при выезде",null,null,null,null,null,null,null,null,null,null,null,null,null,null,null,null,null,null,null,null,null,null,null,null,null,null,null,null,null,null,null,null,null,null,null,null,null,null,null,null,null,null,null,null,null,null,"Результат работы автомобиля за смену:",null,null,null,null,null,null,null,null,null,"Расчет заработной платы:"]
[null,null,null,null,null,null,null,null,null,null,null,null,null,null,null,null,null,null,null,null,null,null,null,null,null,null,null,null,null,null,null,null,null,null,null,null,null,null,null,null,null,null,null,null,null,null,null,null,null,null,null,null,null,"при возвращении"]
[null,"Опоздания, ожидания, простои, заезды в гараж и прочие",null,null,null,null,null,null,null,null,null,null,null,null,null,null,null,null,null,null,null,null,null,null,null,null,null,null,null,null,null,null,null,null,null,null,null,null,null,null,null,null,null,null,null,"Расход: по норме",null,null,null,null,null,null,null,null,null,null,null,null,null,null,null,null,null,null,null,null,null,null,null,null,null,null,null,null,null,null,null,null,null,null,null,null,null,null,null,null,null,null,null,null,null,null,"всего в наряде, ч.",null,null,null,null,null,null,null,null,null,"за километраж, руб. коп."]
[null,"отметки",null,null,null,null,null,null,null,null,null,null,null,null,null,null,null,null,null,null,null,null,null,null,null,null,null,null,null,null,null,null,null,null,null,null,null,null,null,null,null,null,null,null,null,null,null,null,null,null,null,null,null,null,"фактически"]
[null,null,null,null,null,null,null,null,null,null,null,null,null,null,null,null,null,null,null,null,null,null,null,null,null,null,null,null,null,null,null,null,null,null,null,null,null,null,null,null,null,null,null,null,null,"Экономия",null,null,null,null,null,null,null,null,null,null,null,null,null,null,null,null,null,null,null,null,null,null,null,null,null,null,null,null,null,null,null,null,null,null,null,null,null,null,null,null,null,null,null,null,null,null,"пройдено, км",null,null,null,null,null,null,null,null,null,"за часы, руб. коп."]
[null,null,null,null,null,null,null,null,null,null,null,null,null,null,null,null,null,null,null,null,null,null,null,null,null,null,null,null,null,null,null,null,null,null,null,null,null,null,null,null,null,null,null,null,null,"Перерасход"]
[null,null,null,null,null,null,null,null,null,null,null,null,null,null,null,null,null,null,null,null,null,null,null,null,null,null,null,null,null,null,null,null,null,null,null,null,null,null,null,null,null,null,null,null,null,"Автомобиль принял. Показания спи-"]
[null,null,"Автомобиль сдал",null,null,null,null,null,null,null,null,null,null,null,null,null,null,null,null,null,null,null,null,null,null,null,null,null,null,null,null,null,null,null,null,null,null,null,null,null,null,null,null,null,null,"дометра при возвращении в гараж, км",null,null,null,null,null,null,null,null,null,null,null,null,null,null,null,null,null,null,null,null,null,null,null,null,null,null,null,null,null,null,null,null,null,null,null,null,null,null,null,null,null,null,null,null,null,null,null,null,null,null,null,null,null,null,null,null,"   Итого, руб. коп."]
[null,null,null,null,null,null,"водитель",null,null,null,null,null,null,null,null,null,null,null,null,null,null,null,null,null,null,null,null,null,null,null,{"$f":"M12","v":"Петровский Д.К."}]
[null,null,null,null,null,null,null,null,null,null,null,null,null,null,null,null,null,null,null,null,"(подпись)",null,null,null,null,null,null,null,null,"(расшифровка подписи)",null,null,null,null,null,null,null,null,null,null,null,null,null,null,null,null,null,null,null,null,null,null,null,null,null,null,null,null,null,null,null,null,null,null,null,{"$f":"BN22","v":"Иванов И.И."},null,null,null,null,null,null,null,null,null,null,null,null,null,null,null,null,null,null,null,null,null,null,null,null,null,null,"Расчет произвел",null,null,null,null,null,null,null,null,null,null,null,null,{"$f":"AD32","v":"Сидоров В.К."}]
[null,null,null,null,null,null,null,"М.П.",null,null,null,null,null,null,null,null,null,null,null,null,null,null,null,null,null,null,null,null,null,null,null,null,null,null,null,null,null,null,null,null,null,null,null,null,null,null,null,null,null,null,null,null,null,null,null,"(подпись)",null,null,null,null,null,null,null,null,null,"(расшифровка подписи)",null,null,null,null,null,null,null,null,null,null,null,null,null,null,null,null,null,null,null,null,null,null,null,null,null,null,null,null,null,"(должность)",null,null,"(подпись)",null,null,null,null,null,null,"(расшифровка подписи)"]

{"sheet":"БД Авто_Л","index":2,"n_rows":15,"n_cols":10,"rows_kept":15,"cut":false,"hidden":false,"merged":[[0,4,0,6],[0,0,0,2],[1,0,1,2]]}
["Легковые автомобили ",null,null,null,"Информация по водителям",null,null,null,null,"Направление (2-й лист)"]
[]
["Марка/модель ","Гос.номер","тип топлива",null,"Водитель","Табельный номер","Удостоверение",null,null,"Направление движения"]
["Иж","М567УВ","Аи-92",null,"Макарский И.У.",120,"02 СКУ 6544",null,null,"г.Москва по городу (служебный)"]
["ГАЗ","У876ДК","Аи-80",null,"Петровский Д.К.",2122,"3 СКУ 6544",null,null,"г.Москва по городу (служебный)"]
["ГАЗ",null,"Аи-92",null,"Демидов Ф.К.",2167,"4 СКУ 6544",null,null,"г.Москва по городу (служебный)"]
["Форд","Т543ВВ","Аи-92",null,null,null,null,null,null,"г.Москва по городу (служебный)"]
["Форд",null,"Аи-92",null,null,null,null,null,null,"г.Москва по городу (служебный)"]
["Форд",null,"Аи-92",null,null,null,null,null,null,"г.Москва по городу (служебный)"]
["ВАЗ",null,"Аи-92",null,null,null,null,null,null,"г.Москва по городу (служебный)"]
["Форд",null,"Аи-92",null,null,null,null,null,null,"г. Москва, Санкт-Петербург (служебный)"]
["Ниссан",null,"Аи-92"]
["Тойота",null,"Аи-92"]
["Форд",null,"Аи-92"]
["Форд",null,"Аи-92"]

{"sheet":"Общие базы","index":3,"n_rows":26,"n_cols":8,"rows_kept":26,"cut":false,"hidden":false,"merged":[[0,6,0,7]]}
["Механик",null,"Диспетчер",null,"Горючее",null,"Время"]
["Иванов И.И.",null,"Сидоров В.К.",null,"Аи-92",null,"↑ Время выезда","↓ Время въезда "]
["Петров П.И.",null,null,null,"Аи-95",null,"00:00:00","00:00:00"]
[null,null,null,null,"Аи-80",null,"01:00:00","01:00:00"]
[null,null,null,null,"Д/т",null,"02:00:00","02:00:00"]
[null,null,null,null,null,null,"03:00:00","03:00:00"]
[null,null,null,null,null,null,"04:00:00","04:00:00"]
[null,null,null,null,null,null,"05:00:00","05:00:00"]
[null,null,null,null,null,null,"06:00:00","06:00:00"]
[null,null,null,null,null,null,"07:00:00","07:00:00"]
[null,null,null,null,null,null,"08:00:00","08:00:00"]
[null,null,null,null,null,null,"09:00:00","09:00:00"]
[null,null,null,null,null,null,"10:00:00","10:00:00"]
[null,null,null,null,null,null,"11:00:00","11:00:00"]
[null,null,null,null,null,null,"12:00:00","12:00:00"]
[null,null,null,null,null,null,"13:00:00","13:00:00"]
[null,null,null,null,null,null,"14:00:00","14:00:00"]
[null,null,null,null,null,null,"15:00:00","15:00:00"]
[null,null,null,null,null,null,"16:00:00","16:00:00"]
[null,null,null,null,null,null,"17:00:00","17:00:00"]
[null,null,null,null,null,null,"18:00:00","18:00:00"]
[null,null,null,null,null,null,"19:00:00","19:00:00"]
[null,null,null,null,null,null,"20:00:00","20:00:00"]
[null,null,null,null,null,null,"21:00:00","21:00:00"]
[null,null,null,null,null,null,"22:00:00","22:00:00"]
[null,null,null,null,null,null,"23:00:00","23:00:00"]